bitfinex/quotes_ETHUSD_20230111
["timestamp","ask_amount","ask_price","bid_price","bid_amount"]
[1673401020331,14.39727262,1337.4,1337.1,26.46112522]
[1673401020544,3.57970404,1337.4,1337.1,26.46112522]
[1673401021031,11.05693404,1337.4,1337.1,26.46112522]
[1673401021613,14.39719262,1337.4,1337.1,26.46112522]
[1673401022698,6.91996262,1337.4,1337.1,26.46112522]
[1673401023342,14.39726262,1337.4,1337.1,26.46112522]
[1673401023926,14.39726262,1337.4,1337.1,18.98230522]
[1673401024564,6.91996262,1337.4,1337.1,26.46108522]
[1673401025310,14.39720262,1337.4,1337.1,26.46108522]
[1673401025656,6.91996262,1337.4,1337.1,26.46108522]
[1673401026868,6.35886262,1337.4,1337.1,26.46108522]
[1673401027080,6.35886262,1337.4,1337.1,33.93995522]
[1673401027290,3.01860404,1337.4,1337.1,33.93995522]
[1673401027499,3.01860404,1337.4,1337.1,26.46108522]
[1673401028182,6.35886262,1337.4,1337.1,26.46108522]
[1673401028568,13.83629262,1337.4,1337.1,18.98230522]
[1673401028800,13.83629262,1337.4,1337.1,15.33714092]
[1673401029127,21.31372262,1337.4,1337.1,15.33714092]
[1673401030281,13.83629262,1337.4,1337.1,15.33714092]
[1673401031388,6.35886262,1337.4,1337.1,15.33714092]
[1673401031597,13.83606262,1337.4,1337.1,26.93016104]
[1673401032024,6.35886262,1337.4,1337.1,26.93016104]
[1673401033652,3.01860404,1337.4,1337.1,26.93016104]
[1673401035317,10.49597404,1337.4,1337.1,19.45153104]
[1673401035501,13.83623262,1337.4,1337.1,19.45153104]
[1673401036981,21.31360262,1337.4,1337.1,19.45153104]
[1673401038217,21.31360262,1337.4,1337.1,15.33714092]
[1673401038903,21.31360262,1337.4,1337.1,15.33440727]
[1673401041377,0.16479302,1337.3,1337.1,15.33440727]
[1673401041582,0.11479302,1337.3,1337.1,15.33440727]
[1673401042779,7.59269302,1337.3,1337.1,15.33440727]
[1673401043405,7.59269302,1337.3,1337.1,0.06529072]
[1673401043639,7.59269302,1337.3,1337.0,10.91394095]
[1673401043856,7.59269302,1337.3,1337.0,14.77855427]
[1673401044237,7.59269302,1337.3,1337.0,22.25794427]
[1673401044677,0.11479302,1337.3,1337.0,32.52128608]
[1673401044895,0.11479302,1337.3,1337.0,29.73737427]
[1673401045446,0.11479302,1337.3,1337.0,32.52129936]
[1673401045598,0.11479302,1337.3,1337.1,3.25212994]
[1673401046712,0.11479302,1337.3,1337.1,7.47877]
[1673401046899,0.11479302,1337.3,1337.1,7.54406072]
[1673401047295,0.11479302,1337.3,1337.1,0.06529072]
[1673401047505,0.11479302,1337.3,1337.0,25.04156587]
[1673401047730,0.11479302,1337.3,1337.0,39.99982587]
[1673401047949,0.11479302,1337.3,1337.1,3.99998259]
[1673401048373,0.11479302,1337.3,1337.1,11.47883259]
[1673401048568,0.11479302,1337.3,1337.1,11.54412331]
[1673401049218,0.11479302,1337.3,1337.1,4.06527331]
[1673401049537,0.11479302,1337.3,1337.1,3.99998259]
[1673401050123,0.11479302,1337.3,1337.0,18.39304095]
[1673401052417,0.11479302,1337.3,1337.0,25.87247095]
[1673401055417,0.11479302,1337.3,1337.0,33.35190095]
[1673401056000,0.11479302,1337.3,1337.0,36.13582232]
[1673401056211,0.11479302,1337.3,1337.0,33.35190095]
[1673401056536,0.11479302,1337.3,1337.1,3.3351901]
[1673401056745,0.11479302,1337.3,1337.0,18.39304095]
[1673401059802,0.11479302,1337.3,1337.0,25.87247095]
[1673401060853,0.11479302,1337.3,1337.0,33.35190095]
[1673401061254,0.11479302,1337.3,1337.0,25.87247095]
[1673401061884,0.11479302,1337.3,1337.0,36.13581611]
[1673401062143,0.11479302,1337.3,1337.1,3.61358161]
[1673401062304,0.11479302,1337.3,1337.0,28.65638611]
[1673401062305,0.11479302,1337.3,1337.0,33.35190095]
[1673401064130,0.11479302,1337.3,1337.0,33.34976027]
[1673401064780,25.8887716,1337.3,1337.0,10.91180027]
[1673401065319,18.4106216,1337.3,1337.0,10.91180027]
[1673401065492,15.29268224,1337.3,1337.0,10.91180027]
[1673401065920,11.95242366,1337.3,1337.0,10.91180027]
[1673401066338,15.29268224,1337.3,1337.0,10.91180027]
[1673401066759,22.77050224,1337.3,1337.0,10.91180027]
[1673401068542,22.78910628,1337.3,1337.0,10.91180027]
[1673401070314,9.75742063,1337.2,1337.0,10.91180027]
[1673401070526,7.47851,1337.2,1337.0,10.91180027]
[1673401071096,9.97576794,1337.2,1337.0,10.91180027]
[1673401071294,9.97576794,1337.2,1337.0,3.00700027]
[1673401071481,7.47576794,1337.2,1337.0,2.94170955]
[1673401072008,17.45427794,1337.2,1337.0,2.94170955]
[1673401072214,13.25892436,1337.2,1337.0,2.94170955]
[1673401072432,10.75892436,1337.2,1337.0,2.94170955]
[1673401073493,3.28315642,1337.2,1337.0,2.94170955]
[1673401074740,5.28315642,1337.2,1337.0,2.94170955]
[1673401074952,3.28315642,1337.2,1337.0,2.94170955]
[1673401078987,10.76158642,1337.2,1337.0,2.94170955]
[1673401088444,1.07615864,1337.1,1337.0,2.94170955]
[1673401088649,10.82758642,1337.2,1337.0,2.94170955]
[1673401088931,34.54036564,1337.2,1337.0,2.94170955]
[1673401089218,16.53788664,1337.1,1337.0,2.94170955]
[1673401089387,42.87595522,1337.1,1336.8,0.09600027]
[1673401089601,42.87595522,1337.1,1336.6,0.15206401]
[1673401089602,7.47999,1336.9,1336.6,0.15206401]
[1673401089828,23.04483616,1337.0,1336.6,0.15206401]
[1673401089829,8.15125616,1337.0,1336.6,0.15206401]
[1673401090140,8.15125616,1337.0,1336.6,2.65206401]
[1673401090141,8.08525616,1337.0,1336.6,2.65206401]
[1673401090350,17.68015616,1337.0,1336.6,2.65206401]
[1673401090561,17.68015616,1337.0,1336.6,10.13366401]
[1673401090778,17.68015616,1337.0,1336.6,10.22966428]
[1673401090956,1.76801562,1336.9,1336.6,10.22966428]
[1673401091742,1.76801562,1336.9,1336.6,17.71132428]
[1673401092332,1.78661966,1336.9,1336.6,17.71132428]
[1673401092543,1.78661966,1336.9,1336.6,25.19298428]
[1673401094369,0.01860404,1336.9,1336.6,25.14298428]
[1673401105816,0.01860404,1336.9,1336.6,25.09298428]
[1673401119346,0.01860404,1336.9,1336.6,27.87762298]
[1673401124049,0.01860404,1336.9,1336.6,25.09298428]
[1673401124276,0.01860404,1336.9,1336.6,27.87762293]
[1673401124488,0.01860404,1336.9,1336.6,34.18231885]
[1673401126286,1.81,1336.8,1336.6,34.18231885]
[1673401127187,1.81,1336.8,1336.7,9.33752863]
[1673401127398,1.81,1336.8,1336.7,9.4335289]
[1673401127636,1.81,1336.8,1336.7,16.9146389]
[1673401128046,1.81,1336.8,1336.7,15.05822027]
[1673401130477,1.81,1336.8,1336.7,15.05578591]
[1673401134905,1.81,1336.8,1336.7,22.53689591]
[1673401142221,1.81,1336.8,1336.7,15.05578591]
[1673401142544,1.81,1336.8,1336.7,7.57711027]
[1673401142792,1.81,1336.8,1336.7,15.05822027]
[1673401154274,1.81,1336.8,1336.7,15.05662381]
[1673401155991,1.812,1336.8,1336.7,15.05662354]
[1673401156149,1.81,1336.8,1336.7,15.05662381]
[1673401158911,1.81,1336.8,1336.7,22.53773381]
[1673401162862,1.81,1336.8,1336.7,7.57551381]
[1673401170100,1.81,1336.8,1336.7,15.05662381]
[1673401171097,0.01860404,1336.9,1336.7,15.05662381]
[1673401171327,0.02060404,1336.9,1336.7,15.05662354]
[1673401171550,0.01860404,1336.9,1336.7,15.05662381]
[1673401172941,3.3828428,1336.9,1336.7,15.05662381]
[1673401178093,3.3828428,1336.9,1336.7,15.05432966]
[1673401182083,3.3828428,1336.9,1336.7,7.57321966]
[1673401183133,3.3828428,1336.9,1336.7,15.05432966]
[1673401185845,3.3828428,1336.9,1336.7,7.57321966]
[1673401188801,3.3828428,1336.9,1336.7,0.09210966]
[1673401189025,3.3828428,1336.9,1336.6,25.37288146]
[1673401189357,3.3828428,1336.9,1336.6,22.58814367]
[1673401191099,3.3828428,1336.9,1336.6,22.5881434]
[1673401191100,3.3848428,1336.9,1336.6,22.5881434]
[1673401191341,3.3828428,1336.9,1336.6,22.58814367]
[1673401198160,3.3828428,1336.9,1336.6,22.58599171]
[1673401202261,3.3828428,1336.9,1336.6,15.10464171]
[1673401203346,3.3828428,1336.9,1336.6,22.58603171]
[1673401204701,3.3828428,1336.9,1336.6,15.10464171]
[1673401204859,3.3828428,1336.9,1336.6,7.62327171]
[1673401205337,6.72310138,1336.9,1336.6,7.62327171]
[1673401205662,6.72510138,1336.9,1336.6,15.10493171]
[1673401205801,3.3848428,1336.9,1336.6,15.10493171]
[1673401206015,3.3828428,1336.9,1336.6,15.10493171]
[1673401207642,3.3828428,1336.9,1336.6,22.58659171]
[1673401213879,3.3828428,1336.9,1336.6,25.37130242]
[1673401214030,3.3828428,1336.9,1336.6,22.58659171]
[1673401214239,3.3828428,1336.9,1336.6,25.37132191]
[1673401214573,3.3828428,1336.9,1336.6,22.58659171]
[1673401216605,0.16537062,1336.8,1336.6,22.58659171]
[1673401217832,0.16537062,1336.8,1336.6,0.14202171]
[1673401218042,0.16537062,1336.8,1336.6,0.04991205]
[1673401218043,0.73955387,1336.8,1336.6,0.04991205]
[1673401221117,0.73955387,1336.8,1336.6,7.53134205]
[1673401221423,0.75815791,1336.8,1336.6,0.14202171]
[1673401221745,8.23872791,1336.8,1336.6,0.04991205]
[1673401221919,0.82387279,1336.7,1336.6,0.04991205]
[1673401222139,8.30472791,1336.8,1336.7,0.00334899]
[1673401222384,8.24072791,1336.8,1336.6,0.04991205]
[1673401222534,8.24072791,1336.8,1336.6,0.04687492]
[1673401224226,11.58098649,1336.8,1336.6,0.04687492]
[1673401224767,19.06153649,1336.8,1336.6,0.04687492]
[1673401224990,1.90615365,1336.7,1336.6,0.04687492]
[1673401232684,7.46401153,1336.7,1336.6,0.04687492]
[1673401232861,23.95056365,1336.7,1336.6,0.04687492]
[1673401233068,26.95056365,1336.7,1336.6,0.04687492]
[1673401233436,56.27656075,1336.7,1336.6,0.04687492]
[1673401233943,57.02867976,1336.7,1336.6,0.04687492]
[1673401237420,57.25867976,1336.7,1336.6,0.04687492]
[1673401237582,61.74567976,1336.7,1336.6,0.04687492]
[1673401238736,40.8794533,1336.7,1336.6,0.04687492]
[1673401238957,33.1683433,1336.7,1336.6,0.04687492]
[1673401240214,25.6872333,1336.7,1336.6,0.04687492]
[1673401240419,24.93511429,1336.7,1336.6,0.04687492]
[1673401242141,3.002,1336.7,1336.6,4.15987492]
[1673401242305,3.0,1336.7,1336.6,4.15987492]
[1673401242511,28.55307062,1336.8,1336.6,26.60485492]
[1673401242756,28.48907062,1336.8,1336.6,19.21530458]
[1673401242969,9.62077062,1336.8,1336.6,19.21530458]
[1673401243187,9.62077062,1336.8,1336.6,22.06745344]
[1673401243803,9.62077062,1336.8,1336.6,14.58579344]
[1673401244208,9.62077062,1336.8,1336.6,7.62064458]
[1673401244438,9.62077062,1336.8,1336.6,0.13898458]
[1673401244766,9.62077062,1336.8,1336.6,0.04687492]
[1673401245185,9.62077062,1336.8,1336.6,0.04341759]
[1673401247733,17.10132062,1336.8,1336.6,0.04341759]
[1673401247949,35.08443565,1336.8,1336.6,0.04341759]
[1673401248766,20.12321565,1336.8,1336.6,0.04341759]
[1673401249189,12.64266565,1336.8,1336.6,0.04341759]
[1673401249362,9.62077062,1336.8,1336.6,0.04341759]
[1673401252339,17.10132062,1336.8,1336.6,0.04341759]
[1673401255150,24.58187062,1336.8,1336.6,0.04341759]
[1673401255987,17.10132062,1336.8,1336.6,0.04341759]
[1673401261832,9.62077062,1336.8,1336.6,0.04341759]
[1673401263772,10.18207062,1336.8,1336.6,0.04341759]
[1673401263982,9.62077062,1336.8,1336.6,0.04341759]
[1673401265050,17.10137062,1336.8,1336.6,0.04341759]
[1673401265594,20.53966309,1336.8,1336.6,0.04341759]
[1673401267350,17.10137062,1336.8,1336.6,0.04341759]
[1673401268793,17.10137062,1336.8,1336.6,0.04033773]
[1673401271269,24.58197062,1336.8,1336.6,0.04033773]
[1673401271718,17.10137062,1336.8,1336.6,0.04033773]
[1673401272644,28.37958126,1336.8,1336.6,0.04033773]
[1673401272867,2.83795813,1336.7,1336.6,0.04033773]
[1673401273034,14.96222,1336.7,1336.6,0.04033773]
[1673401273248,7.48311,1336.7,1336.6,0.04033773]
[1673401276063,0.002,1336.7,1336.6,0.04033773]
[1673401276437,28.3985553,1336.8,1336.6,0.04033773]
[1673401276962,35.8793853,1336.8,1336.6,0.04033773]
[1673401277117,11.06904853,1336.7,1336.6,0.04033773]
[1673401277329,11.07104853,1336.7,1336.6,0.04033773]
[1673401278095,26.03326853,1336.7,1336.6,0.04033773]
[1673401278632,11.07104853,1336.7,1336.6,0.04033773]
[1673401279075,18.55215853,1336.7,1336.6,0.04033773]
[1673401279663,29.83092917,1336.7,1336.6,0.04033773]
[1673401282647,29.82798304,1336.7,1336.6,0.04033773]
[1673401284842,22.34687304,1336.7,1336.6,0.04033773]
[1673401286385,25.68713162,1336.7,1336.6,0.04033773]
[1673401288062,22.34687304,1336.7,1336.6,0.04033773]
[1673401291467,33.16824162,1336.7,1336.6,0.04033773]
[1673401292942,29.82798304,1336.7,1336.6,0.04033773]
[1673401294208,22.34687304,1336.7,1336.6,0.04033773]
[1673401295629,38.60436063,1336.7,1336.6,0.04033773]
[1673401295880,44.72351851,1336.7,1336.6,0.04033773]
[1673401296823,39.16566063,1336.7,1336.6,0.04033773]
[1673401301674,31.68455063,1336.7,1336.6,0.04033773]
[1673401302191,39.16566063,1336.7,1336.6,0.04033773]
[1673401302872,28.34429205,1336.7,1336.6,0.04033773]
[1673401304791,35.82540205,1336.7,1336.6,0.04033773]
[1673401305444,35.82540205,1336.7,1336.6,0.03685571]
[1673401305445,35.26410205,1336.7,1336.6,0.03685571]
[1673401306546,27.78299205,1336.7,1336.6,0.03685571]
[1673401309307,34.51198304,1336.7,1336.6,0.03685571]
[1673401309538,27.78299205,1336.7,1336.6,0.03685571]
[1673401317285,35.26410205,1336.7,1336.6,0.03685571]
[1673401317529,20.30188205,1336.7,1336.6,0.03685571]
[1673401317737,3.75411901,1336.7,1336.6,0.03685571]
[1673401317953,11.23322901,1336.7,1336.6,0.03685571]
[1673401318140,11.23522901,1336.7,1336.6,0.03685571]
[1673401318559,3.75411901,1336.7,1336.6,0.03685571]
[1673401318810,3.75211901,1336.7,1336.6,0.03685571]
[1673401319388,3.0,1336.7,1336.6,0.03685571]
[1673401322867,3.0,1336.7,1336.6,9.04303465]
[1673401323074,0.98348963,1336.8,1336.6,16.61680431]
[1673401323394,0.91748963,1336.8,1336.6,16.61680431]
[1673401323758,0.91748963,1336.8,1336.6,9.13514431]
[1673401324351,0.91748963,1336.8,1336.6,1.65348431]
[1673401324563,0.91748963,1336.8,1336.6,1.56137465]
[1673401326073,0.91748963,1336.8,1336.6,9.04302465]
[1673401326238,0.91748963,1336.8,1336.6,9.13513431]
[1673401327326,0.91748963,1336.8,1336.6,16.61679431]
[1673401328227,0.91748963,1336.8,1336.6,1.65348431]
[1673401328432,0.91748963,1336.8,1336.6,1.56137465]
[1673401328646,0.91748963,1336.8,1336.6,1.55829868]
[1673401329488,0.16537062,1336.8,1336.6,1.55829868]
[1673401332176,7.64604062,1336.8,1336.6,1.55829868]
[1673401332339,7.64804062,1336.8,1336.6,0.03377974]
[1673401339833,7.8369301,1336.8,1336.6,0.03377974]
[1673401339996,15.3176001,1336.8,1336.6,0.03377974]
[1673401341266,7.8369301,1336.8,1336.6,0.03377974]
[1673401344192,0.3562601,1336.8,1336.6,0.03377974]
[1673401344516,0.3542601,1336.8,1336.6,0.80058112]
[1673401346143,0.3542601,1336.8,1336.6,15.76379112]
[1673401346329,0.3542601,1336.8,1336.6,15.85590078]
[1673401346819,0.3542601,1336.8,1336.6,8.37424078]
[1673401348413,0.3542601,1336.8,1336.6,0.89269078]
[1673401348628,0.9155601,1336.8,1336.6,0.80058112]
[1673401348836,0.3542601,1336.8,1336.6,0.80058112]
[1673401349042,0.3542601,1336.8,1336.6,8.28218112]
[1673401349288,0.3542601,1336.8,1336.6,23.33761078]
[1673401351765,0.3542601,1336.8,1336.7,2.33376108]
[1673401352014,0.3542601,1336.8,1336.7,17.29598108]
[1673401352334,0.3542601,1336.8,1336.7,9.90456895]
[1673401352502,0.3542601,1336.8,1336.7,7.57321966]
[1673401353136,0.3542601,1336.8,1336.7,15.05432966]
[1673401353345,0.3542601,1336.8,1336.7,7.57321966]
[1673401353671,0.3542601,1336.8,1336.7,15.05432966]
[1673401354113,0.3542601,1336.8,1336.7,7.57321966]
[1673401354710,0.3542601,1336.8,1336.7,0.09210966]
[1673401354958,0.3542601,1336.8,1336.6,15.0883294]
[1673401355129,0.3542601,1336.8,1336.7,7.48111]
[1673401355357,0.3542601,1336.8,1336.7,7.57321966]
[1673401356893,0.3542601,1336.8,1336.7,0.09210966]
[1673401357068,0.3542601,1336.8,1336.6,17.91143445]
[1673401357445,0.3542601,1336.8,1336.6,32.63538233]
[1673401357669,0.3542601,1336.8,1336.7,13.24464823]
[1673401357917,0.3542601,1336.8,1336.7,13.33675789]
[1673401359169,0.3542601,1336.8,1336.7,18.31786789]
[1673401359343,0.3542601,1336.8,1336.7,3.35564789]
[1673401359561,0.3542601,1336.8,1336.7,10.74464823]
[1673401359907,0.3542601,1336.8,1336.7,13.33675789]
[1673401360118,0.3542601,1336.8,1336.7,10.83675789]
[1673401360380,0.3542601,1336.8,1336.7,3.35564789]
[1673401360507,0.3542601,1336.8,1336.7,3.26353823]
[1673401361180,0.3542601,1336.8,1336.6,19.2723694]
[1673401361545,0.3542601,1336.8,1336.6,17.5883694]
[1673401363256,0.3542601,1336.8,1336.6,10.1070994]
[1673401363686,0.3542601,1336.8,1336.6,17.5887594]
[1673401366182,0.3542601,1336.8,1336.6,25.0704194]
[1673401366394,0.3542601,1336.8,1336.7,5.00704194]
[1673401366627,0.3542601,1336.8,1336.7,12.5802616]
[1673401366853,0.3542601,1336.8,1336.7,2.5991516]
[1673401367019,0.3542601,1336.8,1336.6,17.5887594]
[1673401367585,0.3542601,1336.8,1336.6,25.0704194]
[1673401368193,0.3542601,1336.8,1336.6,7.6070994]
[1673401368417,0.3542601,1336.8,1336.6,0.1258894]
[1673401368630,0.3542601,1336.8,1336.6,0.03377974]
[1673401373043,0.3542601,1336.8,1336.6,0.0315378]
[1673401375000,0.3542601,1336.8,1336.6,7.5131078]
[1673401375369,0.3542601,1336.8,1336.6,7.60521746]
[1673401375528,0.3542601,1336.8,1336.6,15.08687746]
[1673401375756,0.3542601,1336.8,1336.6,20.10897161]
[1673401376494,0.3542601,1336.8,1336.7,2.0]
[1673401378182,0.3542601,1336.8,1336.6,27.59034161]
[1673401378391,0.3542601,1336.8,1336.7,9.98111]
[1673401378635,0.3542601,1336.8,1336.7,10.07321966]
[1673401378843,0.3542601,1336.8,1336.7,7.57321966]
[1673401379248,0.3542601,1336.8,1336.7,0.09210966]
[1673401379455,0.3542601,1336.8,1336.6,12.62711161]
[1673401379685,0.3542601,1336.8,1336.7,3.76271116]
[1673401380929,0.3542601,1336.8,1336.7,11.24382116]
[1673401381140,33.30436262,1337.0,1336.7,25.47015082]
[1673401381141,29.9455,1337.0,1336.7,25.47015082]
[1673401381388,29.8815,1337.0,1336.7,25.47015082]
[1673401382957,29.66630001,1337.0,1336.7,25.47015082]
[1673401383136,29.66630001,1337.0,1336.9,7.47999]
[1673401383343,0.34800001,1337.0,1336.9,15.05208966]
[1673401383547,0.34600001,1337.0,1336.9,22.53207966]
[1673401384620,0.34600001,1337.0,1336.9,7.57209966]
[1673401386394,0.34600001,1337.0,1336.9,15.05208966]
[1673401386626,0.34600001,1337.0,1336.9,18.05332263]
[1673401389270,0.34600001,1337.0,1336.9,10.57333263]
[1673401390071,0.34600001,1337.0,1336.9,31.09117051]
[1673401390298,1e-08,1337.0,1336.9,25.53331263]
[1673401390519,0.20100001,1337.0,1336.9,25.53331263]
[1673401391318,0.20100001,1337.0,1336.9,18.05332263]
[1673401392060,0.20100001,1337.0,1336.9,10.57333263]
[1673401395577,0.20100001,1337.0,1336.9,3.09334263]
[1673401395729,0.20100001,1337.0,1336.9,3.00123297]
[1673401396480,0.20100001,1337.0,1336.8,22.83660966]
[1673401396696,0.20100001,1337.0,1336.8,7.57251966]
[1673401396961,0.20100001,1337.0,1336.8,0.09210966]
[1673401397135,0.20100001,1337.0,1336.7,26.5533887]
[1673401397306,0.20100001,1337.0,1336.7,24.79319146]
[1673401397517,0.20100001,1337.0,1336.8,2.47931915]
[1673401397782,0.20100001,1337.0,1336.7,17.31218146]
[1673401400417,0.20100001,1337.0,1336.7,32.27440146]
[1673401400935,0.20100001,1337.0,1336.7,30.35114934]
[1673401401087,0.20100001,1337.0,1336.7,32.27440146]
[1673401401558,0.20100001,1337.0,1336.7,24.79329146]
[1673401401737,0.20100001,1337.0,1336.8,4.97932915]
[1673401402196,0.20100001,1337.0,1336.8,2.47932915]
[1673401402598,0.20100001,1337.0,1336.8,9.95981915]
[1673401402810,0.20100001,1337.0,1336.8,10.05192881]
[1673401405465,0.20100001,1337.0,1336.8,2.57143881]
[1673401405662,0.20100001,1337.0,1336.9,0.25714388]
[1673401406019,0.20100001,1337.0,1336.8,2.57143881]
[1673401406224,0.20100001,1337.0,1336.8,2.47932915]
[1673401411219,0.20100001,1337.0,1336.8,4.47932915]
[1673401411429,0.20100001,1337.0,1336.8,2.47932915]
[1673401414160,0.20100001,1337.0,1336.8,4.97932915]
[1673401414408,0.20100001,1337.0,1336.9,0.49793292]
[1673401414593,0.20100001,1337.0,1336.8,5.07143881]
[1673401414801,0.00220694,1336.9,1336.8,5.07143881]
[1673401415413,0.00220694,1336.9,1336.8,12.55198881]
[1673401415627,0.2991049,1336.9,1336.8,5.07143881]
[1673401415838,0.2991049,1336.9,1336.8,2.57143881]
[1673401416049,0.2991049,1336.9,1336.7,8.3222198]
[1673401416306,0.2991049,1336.9,1336.7,15.8031898]
[1673401417207,0.2991049,1336.9,1336.7,23.2842998]
[1673401418925,0.2991049,1336.9,1336.8,4.35618874]
[1673401419252,0.2991049,1336.9,1336.8,24.94165]
[1673401419413,0.2991049,1336.9,1336.8,22.11867793]
[1673401419622,0.2991049,1336.9,1336.8,22.11662701]
[1673401420575,0.2991049,1336.9,1336.8,23.97282955]
[1673401421416,0.2991049,1336.9,1336.8,25.65682955]
[1673401422162,0.2991049,1336.9,1336.8,23.80062701]
[1673401422371,0.2991049,1336.9,1336.8,40.37921857]
[1673401422606,0.2991049,1336.9,1336.8,37.60557945]
[1673401424792,0.29680397,1336.9,1336.8,37.60557945]
[1673401426035,0.29680397,1336.9,1336.8,38.71776173]
[1673401432031,0.29680397,1336.9,1336.8,37.60557945]
[1673401432242,0.29680397,1336.9,1336.8,38.71776173]
[1673401432483,0.29680397,1336.9,1336.8,37.60557945]
[1673401435178,0.29680397,1336.9,1336.8,41.40324009]
[1673401439734,0.29680397,1336.9,1336.8,42.51542237]
[1673401441968,0.29680397,1336.9,1336.8,41.40324009]
[1673401442784,1e-08,1336.9,1336.8,41.40324009]
[1673401443220,0.00200001,1336.9,1336.8,44.70527998]
[1673401443425,0.00200001,1336.9,1336.8,44.70528025]
[1673401443426,1e-08,1336.9,1336.8,44.70528025]
[1673401445304,1e-08,1336.9,1336.8,39.14742237]
[1673401448896,1e-08,1336.9,1336.8,44.70528025]
[1673401449147,1e-08,1336.9,1336.8,46.37237315]
[1673401449962,1e-08,1336.9,1336.8,48.28637315]
[1673401450186,5.76e-06,1337.0,1336.9,2.5]
[1673401450351,5.76e-06,1337.0,1336.9,44.69117693]
[1673401450562,5.76e-06,1337.0,1336.9,46.45037949]
[1673401451137,5.76e-06,1337.0,1336.9,46.45033373]
[1673401451296,5.76e-06,1337.0,1336.9,45.33000793]
[1673401451504,5.76e-06,1337.0,1336.9,49.23579846]
[1673401452184,5.76e-06,1337.0,1336.9,47.01300793]
[1673401454026,5.76e-06,1337.0,1336.9,48.13247905]
[1673401454498,5.76e-06,1337.0,1336.9,48.13247515]
[1673401454714,5.76e-06,1337.0,1336.9,51.13247515]
[1673401455876,5.76e-06,1337.0,1336.9,51.13248566]
[1673401457140,5.76e-06,1337.0,1336.9,51.13248539]
[1673401457359,5.76e-06,1337.0,1336.9,51.13248566]
[1673401457521,5.76e-06,1337.0,1336.9,50.01300793]
[1673401457888,5.76e-06,1337.0,1336.9,51.13236002]
[1673401458038,5.76e-06,1337.0,1336.9,51.13210317]
[1673401458254,0.05638415,1337.4,1337.0,7.48117424]
[1673401458529,0.05638415,1337.4,1337.3,2.5]
[1673401458740,4.15e-06,1337.4,1337.3,35.95035862]
[1673401458960,4.15e-06,1337.4,1337.3,39.84012892]
[1673401459112,4.15e-06,1337.4,1337.3,42.62311935]
[1673401459325,4.15e-06,1337.4,1337.3,39.84012892]
[1673401459551,4.15e-06,1337.4,1337.3,44.92019093]
[1673401459779,4.15e-06,1337.4,1337.3,43.06483231]
[1673401461224,0.05657466,1337.5,1337.4,26.16856585]
[1673401461576,0.05657466,1337.5,1337.4,26.26067551]
[1673401463112,0.05657466,1337.5,1337.4,30.05833615]
[1673401463327,0.05657466,1337.5,1337.4,28.98858992]
[1673401463751,0.05657466,1337.5,1337.4,0.09410551]
[1673401463951,0.05657466,1337.5,1337.4,0.00199585]
[1673401464370,0.05657466,1337.5,1337.4,14.95637585]
[1673401464615,0.05657466,1337.5,1337.4,15.04848551]
[1673401466059,0.05657466,1337.5,1337.4,7.57129551]
[1673401466249,0.05657466,1337.5,1337.4,15.04848551]
[1673401467355,0.05657466,1337.5,1337.4,7.57129551]
[1673401467976,0.05657466,1337.5,1337.4,15.04848551]
[1673401468197,0.05657466,1337.5,1337.4,7.57129551]
[1673401469224,0.05657466,1337.5,1337.4,15.04848551]
[1673401469935,0.05657466,1337.5,1337.4,7.57129551]
[1673401472609,0.05657466,1337.5,1337.4,0.09410551]
[1673401472783,0.05657466,1337.5,1337.4,0.00199585]
[1673401472980,1.94557466,1337.5,1337.4,0.00199585]
[1673401473193,3.25392959,1337.5,1337.4,0.00199585]
[1673401475799,5.75392959,1337.5,1337.4,0.00199585]
[1673401476008,3.30592959,1337.5,1337.4,0.00199585]
[1673401476224,4.93792959,1337.5,1337.4,0.00199585]
[1673401477586,7.43792959,1337.5,1337.4,0.00199585]
[1673401477759,7.48992959,1337.5,1337.4,0.00199585]
[1673401478707,4.98992959,1337.5,1337.4,0.00199585]
[1673401478926,4.93792959,1337.5,1337.4,0.00199585]
[1673401479250,3.04892959,1337.5,1337.4,0.00199585]
[1673401482211,1.74057466,1337.5,1337.4,0.00199585]
[1673401483526,4.24057466,1337.5,1337.4,0.00199585]
[1673401484113,4.80157466,1337.5,1337.4,0.00199585]
[1673401484421,1.74057466,1337.5,1337.4,0.00199585]
[1673401485442,0.00178492,1337.4,1337.3,9.97775]
[1673401485673,0.00178492,1337.4,1337.3,7.56985966]
[1673401485674,1.66978492,1337.4,1337.3,7.56985966]
[1673401488303,1.66978492,1337.4,1337.3,0.09210966]
[1673401488495,1.66978492,1337.4,1337.2,22.52595966]
[1673401488691,1.66978492,1337.4,1337.2,25.06835563]
[1673401490611,0.00178492,1337.4,1337.3,1.8554842]
[1673401490819,0.00178492,1337.4,1337.3,24.2887342]
[1673401490993,0.00178492,1337.4,1337.3,24.38084386]
[1673401496596,0.00178492,1337.4,1337.3,29.93870174]
[1673401496788,0.00178492,1337.4,1337.3,45.77131412]
[1673401496997,0.00178492,1337.4,1337.3,47.66583171]
[1673401497710,0.00178492,1337.4,1337.3,61.46723954]
[1673401499976,9.58e-06,1337.5,1337.4,2.5]
[1673401500130,0.05657466,1337.6,1337.4,38.92605335]
[1673401500334,0.05657466,1337.6,1337.5,27.68670437]
[1673401500547,0.05657466,1337.6,1337.5,27.77881403]
[1673401501214,1e-08,1337.6,1337.5,27.77881403]
[1673401505647,1e-08,1337.6,1337.5,23.98115339]
[1673401505860,1e-08,1337.6,1337.5,36.33667191]
[1673401506081,0.02850073,1337.8,1337.7,3.82388915]
[1673401506292,0.02850073,1337.8,1337.7,47.33218119]
[1673401506477,0.03396143,1337.9,1337.7,56.73938668]
[1673401506686,1.43e-06,1337.9,1337.8,18.16513248]
[1673401506876,1.43e-06,1337.9,1337.8,40.68209214]
[1673401507522,1.43e-06,1337.9,1337.8,36.27447818]
[1673401507850,1.43e-06,1337.9,1337.8,38.18448523]
[1673401509012,1.43e-06,1337.9,1337.8,39.86848523]
[1673401511472,1.43e-06,1337.9,1337.8,38.19648523]
[1673401512325,1.43e-06,1337.9,1337.8,28.22462735]
[1673401514529,1.43e-06,1337.9,1337.8,24.42696671]
[1673401517267,1.43e-06,1337.9,1337.8,28.22462735]
[1673401517752,0.03263267,1338.0,1337.9,28.66019857]
[1673401517905,0.03263267,1338.0,1337.9,32.94580082]
[1673401518114,0.03263267,1338.0,1337.9,36.74346146]
[1673401521308,0.03263267,1338.0,1337.9,42.78762297]
[1673401521497,0.03263267,1338.0,1337.9,44.21331934]
[1673401522119,0.03263267,1338.0,1337.9,38.65546146]
[1673401523045,0.03263267,1338.0,1337.9,44.21331934]
[1673401523255,0.03263267,1338.0,1337.9,38.65546146]
[1673401523541,0.03263267,1338.0,1337.9,44.21331934]
[1673401523827,0.03263267,1338.0,1337.9,38.65546146]
[1673401524199,0.03263267,1338.0,1337.9,44.21331934]
[1673401528557,2.67e-06,1338.0,1337.9,44.21331934]
[1673401528769,0.03685771,1338.1,1337.9,44.21331934]
[1673401528931,0.03685771,1338.1,1338.0,30.76938592]
[1673401529144,0.03685771,1338.1,1338.0,30.86149558]
[1673401533489,0.03685771,1338.1,1338.0,30.63149558]